bitfinex/quotes_BTCUSD_20241028
["timestamp","ask_amount","ask_price","bid_price","bid_amount"]
[1730125917810,0.32379028,68920.0,68919.0,0.101646]
[1730125919172,0.32479028,68920.0,68919.0,0.102646]
[1730125920327,0.32479028,68920.0,68914.0,0.000823]
[1730125920328,0.32479028,68920.0,68887.0,0.02272283]
[1730125920329,0.41835447,68888.0,68887.0,0.02272283]
[1730125920561,0.41835447,68888.0,68883.0,0.21652677]
[1730125920562,0.145171,68884.0,68883.0,0.21652677]
[1730125920794,0.17336247,68884.0,68883.0,0.21652677]
[1730125921029,0.14537147,68880.0,68879.0,0.001642]
[1730125921266,0.15037147,68880.0,68879.0,0.001642]
[1730125922254,0.30087528,68880.0,68879.0,0.001642]
[1730125922726,0.59385611,68880.0,68879.0,0.001642]
[1730125922950,0.60885611,68880.0,68879.0,0.001642]
[1730125923418,0.60885611,68880.0,68879.0,0.002642]
[1730125923652,0.42987528,68880.0,68879.0,0.002642]
[1730125923895,0.83038288,68880.0,68879.0,0.003642]
[1730125924146,0.61385611,68880.0,68879.0,0.003642]
[1730125924375,0.73671275,68880.0,68879.0,0.003642]
[1730125924622,0.73671275,68880.0,68856.0,0.0926146]
[1730125924623,0.005,68864.0,68856.0,0.0926146]
[1730125924879,0.005,68864.0,68861.0,0.21652677]
[1730125925085,0.15050381,68863.0,68856.0,0.0926146]
[1730125925311,0.15050381,68863.0,68856.0,0.09551889]
[1730125925549,0.15050381,68863.0,68860.0,0.16998083]
[1730125925977,0.15050381,68863.0,68862.0,0.145217]
[1730125925979,0.005,68864.0,68863.0,0.145215]
[1730125926201,0.15550381,68864.0,68860.0,0.31520183]
[1730125926426,0.15550381,68864.0,68863.0,0.145215]
[1730125926654,0.15550381,68864.0,68860.0,0.16998083]
[1730125926882,0.15550381,68863.0,68856.0,0.014]
[1730125927119,0.14522,68861.0,68857.0,0.145228]
[1730125927357,0.14522,68861.0,68851.0,0.290481]
[1730125927358,0.145234,68855.0,68851.0,0.14524]
[1730125927593,0.145234,68855.0,68850.0,0.3549632]
[1730125927594,0.145235,68854.0,68850.0,0.3549632]
[1730125927822,0.15050381,68855.0,68851.0,0.290482]
[1730125928057,0.15050381,68855.0,68852.0,0.46045883]
[1730125928291,0.15050381,68855.0,68854.0,0.145234]
[1730125928763,0.15050381,68855.0,68850.0,0.2097212]
[1730125928764,0.29573781,68855.0,68850.0,0.2097212]
[1730125928999,0.29573781,68855.0,68851.0,0.14524]
[1730125929000,0.15050381,68855.0,68851.0,0.14524]
[1730125929246,0.15050381,68855.0,68851.0,0.145239]
[1730125929479,0.15050381,68854.0,68850.0,0.2097212]
[1730125929740,0.15050381,68854.0,68851.0,0.004]
[1730125930004,0.005,68856.0,68855.0,0.145232]
[1730125930235,0.15550381,68856.0,68855.0,0.145232]
[1730125930447,0.005,68856.0,68855.0,0.145232]
[1730125930671,0.005,68856.0,68855.0,0.14813631]
[1730125930901,0.005,68856.0,68855.0,0.00290431]
[1730125931130,0.005,68856.0,68853.0,0.16998083]
[1730125931357,0.005,68856.0,68851.0,0.004]
[1730125931591,0.22152677,68854.0,68850.0,0.2097212]
[1730125931827,0.15050381,68853.0,68850.0,0.2097212]
[1730125932042,0.145241,68851.0,68850.0,0.1189212]
[1730125932252,0.29574481,68851.0,68850.0,0.1189212]
[1730125932464,0.15050381,68851.0,68850.0,0.1189212]
[1730125934051,0.29574481,68851.0,68850.0,0.1199212]
[1730125934263,0.15050381,68851.0,68850.0,0.1199212]
[1730125934485,0.014,68851.0,68850.0,0.1209212]
[1730125934714,0.014,68851.0,68850.0,0.1199212]
[1730125934960,0.016,68851.0,68850.0,0.1199212]
[1730125935177,0.03,68851.0,68850.0,0.1209212]
[1730125935404,0.014,68851.0,68850.0,0.1199212]
[1730125935637,0.005,68854.0,68850.0,0.12182576]
[1730125935857,0.002,68851.0,68850.0,0.44285812]
[1730125936105,0.002,68851.0,68850.0,0.43995356]
[1730125936302,0.002,68851.0,68850.0,0.60995356]
[1730125936999,0.016,68851.0,68850.0,0.61095356]
[1730125937249,0.21652677,68861.0,68856.0,0.145229]
[1730125937250,0.005,68859.0,68856.0,0.145229]
[1730125937522,0.005,68859.0,68856.0,0.00290428]
[1730125937728,0.005,68860.0,68857.0,0.145227]
[1730125937949,0.005,68858.0,68856.0,0.00290428]
[1730125938171,0.005,68858.0,68853.0,0.00480853]
[1730125938394,0.150222,68860.0,68854.0,0.145234]
[1730125938607,0.005,68858.0,68853.0,0.00480853]
[1730125938839,0.005,68858.0,68856.0,0.001]
[1730125939271,0.145228,68857.0,68856.0,0.001]
[1730125939512,0.150226,68858.0,68856.0,0.001]
[1730125939701,0.005,68858.0,68856.0,0.001]
[1730125939914,0.150226,68858.0,68853.0,0.145234]
[1730125940127,0.005,68858.0,68854.0,0.145234]
[1730125940356,0.005,68858.0,68856.0,0.001]
[1730125940357,0.016,68858.0,68856.0,0.001]
[1730125940798,0.159228,68858.0,68852.0,0.15004553]
[1730125941030,0.145228,68857.0,68856.0,0.001]
[1730125941514,0.29592328,68857.0,68856.0,0.001]
[1730125941516,0.29592328,68857.0,68850.0,0.2138212]
[1730125941517,0.30092328,68857.0,68850.0,0.2138212]
[1730125941754,0.145241,68851.0,68850.0,0.2138212]
[1730125942632,0.145241,68851.0,68850.0,0.1189212]
[1730125943523,0.145237,68853.0,68850.0,0.2691632]
[1730125943741,0.15050381,68852.0,68850.0,0.1239212]
[1730125943954,0.145241,68851.0,68850.0,0.1199212]
[1730125944406,0.15050381,68852.0,68850.0,0.1219212]
[1730125944633,0.29574281,68852.0,68850.0,0.1209212]
[1730125944872,0.145241,68851.0,68850.0,0.1189212]
[1730125945171,0.15050381,68852.0,68850.0,0.1199212]
[1730125945172,0.15950381,68852.0,68850.0,0.1199212]
[1730125945423,0.002,68851.0,68850.0,0.1209212]
[1730125946378,0.15250381,68851.0,68850.0,0.1199212]
[1730125946603,0.30093628,68851.0,68850.0,0.1199212]
[1730125946838,0.40093628,68851.0,68850.0,0.1199212]
[1730125947061,0.40293628,68851.0,68850.0,0.1199212]
[1730125947278,0.40293628,68851.0,68850.0,0.1189212]
[1730125947515,0.67393628,68851.0,68850.0,0.1189212]
[1730125947762,0.68493628,68851.0,68850.0,0.1209212]
[1730125947994,0.68493628,68851.0,68850.0,0.1199212]
[1730125949366,0.69393628,68851.0,68850.0,0.1209212]
[1730125949830,0.42074481,68851.0,68850.0,0.1209212]
[1730125952176,0.84810128,68851.0,68850.0,0.1209212]
[1730125952424,0.73249628,68851.0,68850.0,0.1209212]
[1730125952647,0.33095347,68841.0,68827.0,0.21652677]
[1730125952926,0.51645728,68841.0,68827.0,0.21652677]
[1730125953407,0.15049547,68821.0,68810.0,0.001642]
[1730125953623,0.15569528,68821.0,68810.0,0.001642]
[1730125953846,0.15569528,68821.0,68814.0,0.290638]
[1730125953847,0.15550381,68821.0,68814.0,0.290638]
[1730125954060,0.15550381,68820.0,68815.0,0.14822202]
[1730125954278,0.005,68816.0,68815.0,0.14822202]
[1730125954494,0.005,68816.0,68815.0,0.145316]
[1730125954709,0.005,68817.0,68816.0,0.145314]
[1730125954955,0.005,68828.0,68816.0,0.17288688]
[1730125955141,0.21652677,68824.0,68818.0,0.0808]
[1730125955575,0.21652677,68824.0,68819.0,0.145307]
[1730125955808,0.014,68821.0,68818.0,0.0808]
[1730125956017,0.15050381,68824.0,68818.0,0.0808]
[1730125956232,0.15050381,68824.0,68819.0,0.00290588]
[1730125956446,0.1453,68823.0,68819.0,0.145307]
[1730125956721,0.15050381,68824.0,68821.0,0.16998083]
[1730125957186,0.15050381,68824.0,68822.0,0.145301]
[1730125957397,0.014,68824.0,68822.0,0.145302]
[1730125957614,0.014,68824.0,68822.0,0.1453]
[1730125957839,0.005,68825.0,68821.0,0.46058483]
[1730125958045,0.005,68825.0,68821.0,0.31528283]
[1730125958273,0.014,68824.0,68821.0,0.001]
[1730125958524,0.014,68824.0,68821.0,0.002648]
[1730125958748,0.295595,68825.0,68821.0,0.001648]
[1730125958945,0.150302,68822.0,68821.0,0.001648]
[1730125959399,0.30080581,68822.0,68821.0,0.002648]
[1730125960569,0.30080581,68822.0,68821.0,0.001648]
[1730125960802,0.30080581,68822.0,68821.0,0.002648]
[1730125961005,0.31480581,68822.0,68821.0,0.002648]
[1730125961210,0.32880581,68822.0,68821.0,0.002648]
[1730125961434,0.16950381,68822.0,68821.0,0.001648]
[1730125961668,0.16950381,68822.0,68821.0,0.32083868]
[1730125961669,0.028,68822.0,68821.0,0.32083868]
[1730125961899,0.028,68822.0,68821.0,0.39794136]
[1730125962356,0.028,68822.0,68821.0,0.39694136]
[1730125962357,0.014,68822.0,68821.0,0.39694136]
[1730125962566,0.005,68832.0,68822.0,0.145302]
[1730125962795,0.005,68832.0,68821.0,0.34102883]
[1730125962796,0.21652677,68826.0,68823.0,0.2906]
[1730125963031,0.36703058,68825.0,68821.0,0.171048]
[1730125963257,0.145302,68822.0,68821.0,0.001648]
[1730125963493,0.30180581,68822.0,68821.0,0.006648]
[1730125963725,0.30080581,68822.0,68821.0,0.001648]
[1730125963952,0.31480581,68822.0,68821.0,0.002648]
[1730125964440,0.30080581,68822.0,68821.0,0.001648]
[1730125964652,0.31480581,68822.0,68821.0,0.002648]
[1730125966240,0.45199728,68822.0,68821.0,0.012648]
[1730125966909,0.43799728,68822.0,68821.0,0.011648]
[1730125967366,0.43799728,68822.0,68821.0,0.012648]
[1730125967367,0.45199728,68822.0,68821.0,0.012648]
[1730125968019,0.42899728,68822.0,68821.0,0.012648]
[1730125968276,0.42880581,68822.0,68821.0,0.012648]
[1730125968496,0.18350381,68822.0,68821.0,0.012648]
[1730125969286,0.32880581,68822.0,68821.0,0.012648]
[1730125969502,0.32880581,68822.0,68821.0,0.002648]
[1730125969698,0.18350381,68822.0,68821.0,0.002648]
[1730125970112,0.32547281,68822.0,68821.0,0.002648]
[1730125970483,0.18017081,68822.0,68821.0,0.147952]
[1730125971337,0.18017081,68822.0,68821.0,0.012648]
[1730125971615,0.029667,68822.0,68821.0,0.157952]
[1730125971822,0.028,68822.0,68821.0,0.1608579]
[1730125972089,0.028,68822.0,68821.0,0.16085777]
[1730125972312,0.028,68822.0,68821.0,0.1656663]
[1730125972544,0.028,68822.0,68821.0,0.157952]
[1730125972755,0.014,68822.0,68821.0,0.157952]
[1730125973203,0.001667,68826.0,68823.0,0.290598]
[1730125973427,0.001667,68826.0,68825.0,0.145296]
[1730125973660,0.001667,68825.0,68824.0,0.145297]
[1730125974037,0.001667,68828.0,68827.0,0.145291]
[1730125974258,0.290533,68839.0,68827.0,0.145291]
[1730125974259,0.001667,68833.0,68828.0,0.290579]
[1730125974404,0.15050381,68832.0,68831.0,0.31526383]
[1730125974624,0.001667,68834.0,68833.0,0.145279]
[1730125975069,0.001667,68840.0,68839.0,0.145266]
[1730125975293,0.001667,68840.0,68836.0,0.16998083]
[1730125975544,0.001667,68837.0,68836.0,0.31525183]
[1730125975767,0.001667,68837.0,68836.0,0.16998083]
[1730125975998,0.15217081,68837.0,68833.0,0.079]
[1730125976224,0.145285,68830.0,68829.0,0.0908]
[1730125976673,0.292229,68832.0,68829.0,0.0908]
[1730125976900,0.145285,68830.0,68829.0,0.0908]
[1730125977124,0.145285,68830.0,68824.0,0.145297]
[1730125977360,0.15217081,68832.0,68823.0,0.16998083]
[1730125977575,0.29745181,68832.0,68829.0,0.011]
[1730125978000,0.15217081,68832.0,68829.0,0.005]
[1730125978216,0.15217081,68832.0,68831.0,0.16998083]
[1730125978424,0.15217081,68832.0,68829.0,0.005]
[1730125978877,0.15217081,68832.0,68828.0,0.145288]
[1730125979085,0.002,68830.0,68826.0,0.46056483]
[1730125979292,0.002,68830.0,68827.0,0.290583]
[1730125979493,0.15217081,68832.0,68826.0,0.16998083]
[1730125979636,0.145286,68830.0,68826.0,0.16998083]
[1730125979854,0.15050381,68829.0,68822.0,0.26768083]
[1730125980052,0.15050381,68829.0,68823.0,0.2906]
[1730125980266,0.29579181,68829.0,68826.0,0.005]
[1730125980469,0.29579081,68829.0,68826.0,0.008]
[1730125980668,0.15050381,68829.0,68823.0,0.2906]
[1730125980874,0.15050381,68829.0,68828.0,0.145289]
[1730125981091,0.001,68829.0,68828.0,0.145289]
[1730125982024,0.002,68829.0,68828.0,0.145289]
[1730125982239,0.001,68829.0,68828.0,0.145289]
[1730125982444,0.001667,68830.0,68829.0,0.145287]
[1730125982969,0.001667,68830.0,68827.0,0.16998083]
[1730125983184,0.001667,68830.0,68829.0,0.145287]
[1730125983632,0.001667,68830.0,68827.0,0.16998083]
[1730125983855,0.001667,68830.0,68829.0,0.145286]
[1730125984303,0.001667,68830.0,68829.0,0.005]
[1730125984531,0.290544,68837.0,68829.0,0.005]
[1730125984532,0.00019147,68837.0,68829.0,0.005]
[1730125984760,0.001667,68832.0,68831.0,0.145283]
[1730125984974,0.001667,68832.0,68829.0,0.005]
[1730125985188,0.001667,68832.0,68829.0,0.17498083]
[1730125985413,0.001667,68832.0,68829.0,0.32026683]
[1730125985660,0.00019147,68835.0,68829.0,0.17498083]
[1730125985661,0.001667,68831.0,68829.0,0.17498083]
[1730125985876,0.146951,68831.0,68829.0,0.006]
[1730125986125,0.29764728,68830.0,68829.0,0.006]
[1730125986347,0.145289,68828.0,68827.0,0.007]
[1730125986567,0.1453,68823.0,68822.0,0.0977]
[1730125986787,0.29580381,68823.0,68822.0,0.0977]
[1730125987008,0.29599528,68823.0,68822.0,0.0977]
[1730125987232,0.145302,68822.0,68821.0,0.001648]
[1730125987509,0.29580581,68822.0,68821.0,0.001648]
[1730125987723,0.29747281,68822.0,68821.0,0.001648]
[1730125987971,0.32066428,68822.0,68821.0,0.001648]
[1730125988195,0.42066428,68822.0,68821.0,0.001648]
[1730125989777,0.45743546,68822.0,68821.0,0.002648]
[1730125990672,0.46543546,68822.0,68821.0,0.003648]
[1730125991833,0.44243546,68822.0,68821.0,0.003648]
[1730125992056,0.34243546,68822.0,68821.0,0.17362883]
[1730125992277,0.19713346,68822.0,68821.0,0.19099171]
[1730125992547,0.34243546,68822.0,68821.0,0.003648]
[1730125993191,0.19694199,68822.0,68821.0,0.013648]
[1730125994108,0.34224399,68822.0,68821.0,0.013648]
[1730125994314,0.19694199,68822.0,68821.0,0.158952]
[1730125994591,0.04477118,68822.0,68821.0,0.252052]
[1730125994818,0.04477118,68822.0,68821.0,0.25495783]
[1730125994819,0.022,68822.0,68821.0,0.25495783]
[1730125995078,0.022,68822.0,68821.0,0.252052]
[1730125995544,0.001667,68826.0,68825.0,0.145296]
[1730125996190,0.001667,68826.0,68823.0,0.145299]
[1730125996616,0.001667,68826.0,68822.0,0.31528283]
[1730125996617,0.15050381,68825.0,68822.0,0.31528283]
[1730125996819,0.15050381,68825.0,68821.0,0.385355]
[1730125996820,0.29579981,68825.0,68821.0,0.094748]
[1730125997022,0.15050381,68825.0,68821.0,0.094748]
[1730125997267,0.29579981,68825.0,68821.0,0.240052]
[1730125997478,0.145302,68822.0,68821.0,0.094748]
[1730125997692,0.15050381,68822.0,68821.0,0.094748]
[1730125998138,0.29599728,68822.0,68821.0,0.094748]
[1730125998364,0.00185847,68826.0,68821.0,0.26472883]
[1730125998601,0.001667,68826.0,68825.0,0.31527683]
[1730125999087,0.001667,68830.0,68828.0,0.145289]
[1730125999310,0.000824,68831.0,68830.0,0.31526583]
[1730125999537,0.000824,68831.0,68828.0,0.145289]
[1730125999538,0.002491,68831.0,68828.0,0.145289]
[1730125999763,0.002491,68831.0,68826.0,0.54066783]
[1730125999764,0.29578981,68830.0,68826.0,0.0801]
[1730125999987,0.15050381,68830.0,68828.0,0.145289]
[1730126000211,0.15050381,68830.0,68826.0,0.0801]
[1730126000437,0.145288,68829.0,68826.0,0.0801]
[1730126000645,0.15217081,68830.0,68827.0,0.14529]
[1730126001125,0.15217081,68830.0,68826.0,0.0801]
[1730126001358,0.16017081,68830.0,68828.0,0.146289]
[1730126001807,0.15217081,68830.0,68829.0,0.145287]
[1730126001993,0.15217081,68830.0,68828.0,0.145289]
[1730126002207,0.16017081,68830.0,68828.0,0.145289]
[1730126002436,0.16017081,68830.0,68829.0,0.145287]
[1730126002571,0.15217081,68830.0,68829.0,0.145287]
[1730126002827,0.014,68830.0,68829.0,0.145287]
[1730126003255,0.015667,68830.0,68829.0,0.145287]
[1730126003748,0.001667,68830.0,68829.0,0.145287]
[1730126003949,0.009667,68830.0,68829.0,0.145287]
[1730126004351,0.015667,68830.0,68829.0,0.146287]
[1730126004566,0.014,68830.0,68829.0,0.255187]
[1730126004783,0.022,68830.0,68829.0,0.25909246]
[1730126005209,0.022,68830.0,68829.0,0.256187]
[1730126005650,0.014,68830.0,68829.0,0.255187]
[1730126006109,0.014,68830.0,68829.0,0.25809228]
[1730126006340,0.014823,68830.0,68829.0,0.34310081]
[1730126006577,0.014823,68830.0,68829.0,0.34019553]
[1730126007256,0.001823,68830.0,68829.0,0.34819553]
[1730126008127,0.001823,68830.0,68829.0,0.33919553]
[1730126008550,0.002823,68830.0,68829.0,0.34919553]
[1730126009246,0.000824,68831.0,68829.0,0.34919553]
[1730126009247,0.000824,68831.0,68830.0,0.15842653]
[1730126009474,0.000824,68840.0,68839.0,0.145266]
[1730126009705,0.000824,68840.0,68839.0,0.31815155]
[1730126009921,0.000824,68840.0,68839.0,0.145266]
[1730126010646,0.000824,68840.0,68839.0,0.159266]
[1730126010866,0.001824,68840.0,68839.0,0.26097935]
[1730126011066,0.001874,68840.0,68839.0,0.31957453]
[1730126011207,0.001874,68840.0,68839.0,0.33357453]
[1730126011407,0.002874,68840.0,68839.0,0.33357453]
[1730126011636,0.001874,68840.0,68839.0,0.31957453]
[1730126012078,0.002874,68840.0,68839.0,0.33157453]
[1730126012488,0.003874,68840.0,68839.0,0.338766]
[1730126013247,0.001874,68840.0,68839.0,0.326766]
[1730126013668,0.001874,68840.0,68839.0,0.340766]
[1730126013875,0.001874,68840.0,68839.0,0.326766]
[1730126014106,0.001874,68840.0,68839.0,0.337766]
[1730126014722,0.000874,68840.0,68839.0,0.325766]
[1730126015144,0.000874,68840.0,68839.0,0.339766]
[1730126015572,0.000874,68840.0,68839.0,0.325766]
[1730126015790,0.000874,68840.0,68839.0,0.337766]
[1730126019190,0.000874,68840.0,68839.0,0.023]
[1730126019405,0.29683328,68840.0,68839.0,0.023]
[1730126019653,0.15156928,68840.0,68839.0,0.023]
[1730126020122,0.29850028,68840.0,68839.0,0.023]
[1730126020331,0.50540028,68840.0,68839.0,0.023]
[1730126020574,0.51540028,68840.0,68839.0,0.023]
[1730126020973,0.51540028,68840.0,68839.0,0.012]
[1730126021391,0.77316583,68840.0,68839.0,0.012]
[1730126021597,0.77816583,68840.0,68839.0,0.012]
[1730126021815,0.75940028,68840.0,68839.0,0.001]
[1730126022234,0.75940028,68840.0,68839.0,0.002]
[1730126022450,0.76940028,68840.0,68839.0,0.002]
[1730126022666,0.76940028,68840.0,68839.0,0.001]
[1730126023243,0.001667,68823.0,68822.0,0.145301]
[1730126023668,0.001667,68823.0,68821.0,0.001648]
[1730126023898,0.001667,68823.0,68822.0,0.145302]
[1730126024638,0.001667,68823.0,68821.0,0.001648]
[1730126024640,0.53516047,68822.0,68821.0,0.001648]
[1730126024847,0.68566428,68822.0,68821.0,0.001648]
[1730126025529,0.68566428,68822.0,68821.0,0.007648]
[1730126025729,0.68066428,68822.0,68821.0,0.007648]
[1730126025953,0.67566428,68822.0,68821.0,0.007648]
[1730126026170,0.68166428,68822.0,68821.0,0.008648]
[1730126026388,0.67666428,68822.0,68821.0,0.008648]
[1730126026532,0.67666428,68822.0,68821.0,0.002648]
[1730126026739,0.67166428,68822.0,68821.0,0.002648]
[1730126026956,0.67166428,68822.0,68821.0,0.003648]
[1730126026957,0.15836228,68822.0,68821.0,0.003648]
[1730126027155,0.30366428,68822.0,68821.0,0.002648]
[1730126027366,0.30266428,68822.0,68821.0,0.001648]
[1730126027562,0.30766428,68822.0,68821.0,0.002648]
[1730126027792,0.30266428,68822.0,68821.0,0.002648]
[1730126028226,0.30466428,68822.0,68821.0,0.002648]
[1730126028397,0.29766428,68822.0,68821.0,0.002648]
[1730126028930,0.29766428,68822.0,68821.0,0.001648]
[1730126029103,0.29766428,68822.0,68821.0,0.002648]
[1730126029731,0.67066428,68822.0,68821.0,0.002648]
[1730126030130,0.75526428,68822.0,68821.0,0.003648]
[1730126030936,0.75526428,68822.0,68821.0,0.002648]
[1730126031368,0.75526428,68822.0,68821.0,0.003648]
[1730126032643,0.65266428,68822.0,68821.0,0.003648]
[1730126035792,0.65766428,68822.0,68821.0,0.003648]
[1730126036647,0.001667,68811.0,68801.0,0.0128116]
[1730126036953,0.87182058,68802.0,68779.0,0.07381067]
[1730126037114,0.87182058,68809.0,68752.0,0.001646]
[1730126037115,0.170403,68774.0,68752.0,0.001646]
[1730126037321,0.293403,68774.0,68752.0,0.001646]
[1730126037530,0.45594875,68774.0,68752.0,0.001646]
[1730126037771,0.270408,68772.0,68752.0,0.001646]
[1730126037976,0.659182,68772.0,68752.0,0.001646]
[1730126038243,0.41091181,68772.0,68764.0,0.87182058]
[1730126038464,0.41091181,68772.0,68757.0,0.96832058]
[1730126038465,0.61389264,68772.0,68757.0,0.96832058]
[1730126038708,0.61389264,68772.0,68757.0,0.87182058]
[1730126039147,0.44391181,68772.0,68757.0,0.87182058]
[1730126039997,0.44591181,68772.0,68752.0,0.001646]
[1730126040217,0.61041562,68772.0,68771.0,0.002642]
[1730126040436,0.62441562,68772.0,68771.0,0.003642]
[1730126040642,0.87155374,68772.0,68771.0,0.003642]
[1730126040888,0.85755374,68772.0,68771.0,0.002642]
[1730126041127,0.87155374,68772.0,68771.0,0.003642]
[1730126041337,0.72104993,68772.0,68771.0,0.003642]
[1730126041742,0.74383944,68772.0,68771.0,0.003642]
[1730126043469,0.74183944,68772.0,68771.0,0.003642]
[1730126045001,0.35170132,68772.0,68771.0,0.003642]
[1730126045205,0.60670132,68772.0,68771.0,0.003642]
[1730126045428,0.58391181,68772.0,68771.0,0.003642]
[1730126046069,0.56991181,68772.0,68771.0,0.002642]
[1730126046296,0.81704993,68772.0,68771.0,0.002642]
[1730126046506,1.07755374,68772.0,68771.0,0.002642]
[1730126046720,1.10055374,68772.0,68771.0,0.002642]
[1730126046950,1.11455374,68772.0,68771.0,0.003642]
[1730126047163,1.11955374,68772.0,68771.0,0.003642]
[1730126047384,0.95504993,68772.0,68771.0,0.002642]
[1730126047846,0.96904993,68772.0,68771.0,0.003642]
[1730126048275,0.97104993,68772.0,68771.0,0.003642]
[1730126048513,0.96904993,68772.0,68771.0,0.003642]
[1730126048773,0.95904993,68772.0,68771.0,0.003642]
[1730126050296,1.11455374,68772.0,68771.0,0.003642]
[1730126050514,0.96904993,68772.0,68771.0,0.003642]
[1730126050952,0.96404993,68772.0,68771.0,0.003642]
[1730126051828,0.028,68772.0,68771.0,0.093842]
[1730126052020,0.028,68772.0,68771.0,0.239252]
[1730126052789,0.21811361,68785.0,68771.0,0.092842]
[1730126053021,0.21811361,68785.0,68772.0,0.0393671]
[1730126053211,0.21811361,68785.0,68780.0,0.24713812]
[1730126053669,0.15050381,68785.0,68775.0,0.24713812]
[1730126054123,0.15050381,68785.0,68780.0,0.24713812]
[1730126054606,0.15250381,68785.0,68780.0,0.017]
[1730126054833,0.002,68785.0,68780.0,0.017]
[1730126055055,0.002,68785.0,68781.0,0.02641381]
[1730126055298,0.002,68785.0,68783.0,0.24713812]
[1730126055735,0.001,68785.0,68783.0,0.24713812]
[1730126056177,0.002,68785.0,68783.0,0.39252212]
[1730126056449,0.005,68792.0,68783.0,0.39252212]
[1730126056450,0.005,68792.0,68784.0,0.17810734]
[1730126056678,0.15050381,68791.0,68789.0,0.24713812]
[1730126056897,0.36861742,68791.0,68789.0,0.24713812]
[1730126057112,0.15050381,68791.0,68789.0,0.24713812]
[1730126057532,0.15050381,68791.0,68784.0,0.42233812]
[1730126057747,0.15050381,68791.0,68784.0,0.42333812]
[1730126058221,0.15050381,68791.0,68790.0,0.24713812]
[1730126058688,0.014,68792.0,68791.0,0.145367]
[1730126058933,0.014,68792.0,68791.0,0.14827398]
[1730126059149,0.25,68809.0,68791.0,0.14827398]
[1730126059150,0.005,68803.0,68791.0,0.145367]
[1730126059370,0.15550381,68803.0,68802.0,0.24713812]
[1730126059597,0.25,68809.0,68802.0,0.24713812]
[1730126059598,0.005,68805.0,68802.0,0.39248212]
[1730126059825,0.15050381,68804.0,68803.0,0.0978]
[1730126060315,0.25,68809.0,68803.0,0.0978]
[1730126060316,0.005,68808.0,68803.0,0.0978]
[1730126060545,0.005,68812.0,68807.0,0.24713812]
[1730126060767,0.15050381,68811.0,68807.0,0.24713812]
[1730126061661,0.15050381,68811.0,68809.0,0.145329]
[1730126061874,0.15050381,68811.0,68809.0,0.145328]
[1730126062115,0.005,68816.0,68808.0,0.290663]
[1730126062366,0.005,68816.0,68815.0,0.24713812]
[1730126062367,0.15550381,68816.0,68815.0,0.24713812]
[1730126062583,0.005,68818.0,68815.0,0.17045253]
[1730126062852,0.005,68820.0,68814.0,0.290638]
[1730126063068,0.15550381,68820.0,68819.0,0.17045253]
[1730126063771,0.005,68827.0,68819.0,0.17045253]
[1730126064019,0.005,68827.0,68817.0,0.17045253]
[1730126064020,0.005,68829.0,68826.0,0.17045253]
[1730126064235,0.21811361,68829.0,68828.0,0.17045253]
[1730126064451,0.001646,68831.0,68830.0,0.145285]
[1730126066004,0.001646,68831.0,68828.0,0.29306712]
[1730126066677,0.001646,68831.0,68830.0,0.003]
[1730126066886,0.001646,68831.0,68830.0,0.006]
[1730126067377,0.001646,68831.0,68829.0,0.290575]
[1730126067593,0.001646,68831.0,68830.0,0.17686145]
[1730126067821,0.001646,68831.0,68830.0,0.03157645]
[1730126068020,0.001646,68831.0,68830.0,0.17686145]
[1730126068901,0.001646,68831.0,68830.0,0.18086145]
[1730126069998,0.001646,68831.0,68830.0,0.18686145]
[1730126072195,0.001646,68831.0,68830.0,0.01]
[1730126073253,0.30243281,68831.0,68830.0,0.01]
[1730126073689,0.32543281,68831.0,68830.0,0.01]
[1730126073897,0.32543281,68831.0,68830.0,0.004]
[1730126074127,0.32543281,68831.0,68830.0,0.01]
[1730126074535,0.32543281,68831.0,68830.0,0.006]
[1730126074536,0.42543281,68831.0,68830.0,0.006]
[1730126074951,0.42543281,68831.0,68830.0,0.008]
[1730126075413,0.42543281,68831.0,68830.0,0.006]
[1730126075623,0.43743281,68831.0,68830.0,0.001]
[1730126075834,0.46020015,68831.0,68830.0,0.001]
[1730126076252,0.46020015,68831.0,68830.0,0.002]
[1730126076458,0.47520015,68831.0,68830.0,0.002]
[1730126076881,0.47520015,68831.0,68830.0,0.001]
[1730126076882,0.47720015,68831.0,68830.0,0.001]
[1730126077084,0.45443281,68831.0,68830.0,0.002]
[1730126077494,0.52883281,68831.0,68830.0,0.002]
[1730126077731,0.68629158,68831.0,68830.0,0.002]
[1730126078412,0.92984172,68831.0,68830.0,0.001]
[1730126078638,0.92984172,68831.0,68830.0,0.002]
[1730126078844,0.94184172,68831.0,68830.0,0.001]
[1730126079046,0.95384172,68831.0,68830.0,0.002]
[1730126079518,0.95384172,68831.0,68812.0,0.21811361]
[1730126079519,0.523321,68813.0,68812.0,0.21811361]
[1730126079738,0.67382481,68813.0,68812.0,0.21811361]
[1730126080173,0.145336,68806.0,68794.0,0.0823]
[1730126080387,0.29583981,68806.0,68799.0,0.145349]
[1730126080590,0.15050381,68806.0,68798.0,0.25555014]
[1730126080797,0.15050381,68805.0,68798.0,0.25555014]
[1730126081012,0.29068,68804.0,68798.0,0.25555014]
[1730126081231,0.29584681,68803.0,68798.0,0.40090214]
[1730126081471,0.15050381,68803.0,68798.0,0.25555014]
[1730126082155,0.29584681,68803.0,68798.0,0.40090214]
[1730126082565,0.145345,68802.0,68798.0,0.25555014]
[1730126082773,0.29584881,68802.0,68798.0,0.25555014]
[1730126082985,0.15050381,68802.0,68798.0,0.26455014]
[1730126083206,0.15050381,68802.0,68798.0,0.40990114]
[1730126083409,0.15050381,68802.0,68798.0,0.40090114]
[1730126083838,0.15150381,68802.0,68799.0,0.14535]
[1730126084044,0.15150381,68802.0,68798.0,0.26455014]
[1730126084503,0.15150381,68802.0,68798.0,0.40990214]
[1730126084713,0.002,68802.0,68801.0,0.145346]
[1730126085131,0.002,68802.0,68801.0,0.14825257]
[1730126085566,0.001,68802.0,68801.0,0.14825257]